Workbook

Sheet 车辆信息表
A1: 附件
A2: 2016-2020年度新能源汽车推广应用补助资金地方公示车辆信息表（深圳市）
A3: 年度 | B3: 序号 | C3: 车辆生产企业 | D3: 车辆型号 | E3: 企业申报新能源汽车（辆） | F3: 企业申请补助资金（万元） | G3: 地方审核情况 | H3: 地方实地核查情况 | I3: 地方拟申报新能源汽车（辆） | J3: 地方拟申请补助资金 （万元） | K3: 备注
A4: 总计 | E4: 47840 | F4: 92704.9589 | I4: =SUM(I5,I30,I53,I86,I107) -> 47375 | J4: =SUM(J5,J30,J53,J86,J107) -> 90059.4389
A5: 2020 | B5: 1 | C5: 比亚迪汽车工业有限公司 | D5: 合计 | E5: 41036 | F5: 56019.4136 | I5: =SUM(I6:I29) -> 41032 | J5: =SUM(J6:J29) -> 56012.4436
D6: BYD104014BBEV1 | E6: 1 | F6: 2.6586 | G6: 提交资料符合申报要求，审核通过 | H6: 未纳入实地核查范围 | I6: 1 | J6: 2.6586
D7: BYD5040XXYBEV4 | E7: 1 | F7: 3.696 | I7: 1 | J7: 3.696
D8: BYD5040XXYBEV5 | E8: 1 | F8: 2.954 | I8: 1 | J8: 2.954
D9: BYD6470MBEV1 | E9: 3 | F9: 7.25 | I9: 3 | J9: 7.25
D10: BYD6470MT6HEV2 | E10: 201 | F10: 186.54 | H10: 实地核查2辆，核减1辆，核减原因：现场未核查到车辆 | I10: 200 | J10: 185.69
D11: BYD6470MT6HEV4 | E11: 253 | F11: 234.88 | H11: 实地核查2辆，核减1辆，核减原因：现场未核查到车辆 | I11: 252 | J11: 234.03
D12: BYD6490SBEV | E12: 483 | F12: 1022 | H12: 未纳入实地核查范围 | I12: 483 | J12: 1022
D13: BYD6490SBEV1 | E13: 253 | F13: 529.16 | I13: 253 | J13: 529.16
D14: BYD6490ST6HEV | E14: 1636 | F14: 1502.605 | I14: 1636 | J14: 1502.605
D15: BYD6490ST6HEV1 | E15: 1662 | F15: 1527.615 | I15: 1662 | J15: 1527.615
D16: BYD6490ST6HEV2 | E16: 1564 | F16: 1403.65 | G16: 核减14辆车补助资金1.47万元，核减原因：无法提供“公共领域”车辆证明材料 | H16: 实地核查2辆，核减1辆，核减原因：现场未核查到车辆 | I16: 1563 | J16: 1401.33
D17: BYD6490ST6HEV3 | E17: 1366 | F17: 1160.95 | G17: 提交资料符合申报要求，审核通过 | H17: 未纳入实地核查范围 | I17: 1366 | J17: 1160.95
D18: BYD6490ST6HEV4 | E18: 4589 | F18: 3900.65 | G18: 核减1辆，核减原因：车辆发票信息与税务系统不一致 | I18: 4588 | J18: 3899.8
D19: BYD6490ST6HEV5 | E19: 2348 | F19: 1995.05 | G19: 提交资料符合申报要求，审核通过 | I19: 2348 | J19: 1995.05
D20: BYD6490STHEV | E20: 343 | F20: 316.645 | I20: 343 | J20: 316.645
D21: BYD6490STHEV1 | E21: 12 | F21: 11.7 | I21: 12 | J21: 11.7
D22: BYD7009BEV | E22: 7940 | F22: 16077.8925 | I22: 7940 | J22: 16077.8925
D23: BYD7009BEV1 | E23: 8702 | F23: 17620.9425 | I23: 8702 | J23: 17620.9425
D24: BYD7009BEV2 | E24: 1 | F24: 2.025 | I24: 1 | J24: 2.025
D25: BYD7200YT6HEV | E25: 7420 | F25: 6307 | I25: 7420 | J25: 6307
D26: QCJ6490SBEV | E26: 159 | F26: 317.7 | I26: 159 | J26: 317.7
D27: QCJ6490SBEV1 | E27: 62 | F27: 111.6 | I27: 62 | J27: 111.6
D28: QCJ6490ST6HEV | E28: 898 | F28: 785.05 | G28: 核减9辆车补助资金0.945万元，核减原因：无法提供“公共领域”车辆证明材料 | I28: 898 | J28: 784.105
D29: QCJ6490ST6HEV1 | E29: 1138 | F29: 989.2 | G29: 核减11辆车补助资金1.155万元，核减原因：无法提供“公共领域”车辆证明材料 | I29: 1138 | J29: 988.045
A30: 2019 | B30: 1 | C30: 比亚迪汽车工业有限公司 | D30: 合计 | E30: =SUM(E31:E52) -> 3562 | F30: =SUM(F31:F52) -> 15821.032 | I30: =SUM(I31:I52) -> 3169 | J30: =SUM(J31:J52) -> 13454.222
D31: BYD3310EH9BEV2 | E31: 1541 | F31: 9528.5 | G31: 核减347辆，核减原因：截至2020年12月31日累计行驶里程不足2万公里 | H31: 实地核查50辆，核查通过 | I31: 1194 | J31: 7353
D32: BYD4180D8CBEV1 | E32: 2 | F32: 11 | G32: 提交资料符合申报要求，审核通过 | H32: 未纳入实地核查范围 | I32: 2 | J32: 11
D33: BYD6100LSEV3 | E33: 2 | F33: =E33*19.8 -> 39.6 | I33: 2 | J33: =I33*19.8 -> 39.6
D34: BYD6100LSEV4 | E34: 58 | F34: =E34*19.8 -> 1148.4 | I34: 58 | J34: =I34*19.8 -> 1148.4
D35: BYD6101LGEV5 | E35: 18 | F35: =E35*13.068 -> 235.224 | I35: 18 | J35: =I35*13.068 -> 235.224
D36: BYD6110HLEV2 | E36: 1 | F36: 13.068 | I36: 1 | J36: 13.068
D37: BYD6470MT6HEV2 | E37: 13 | F37: =E37*0.7 -> 9.1 | I37: 13 | J37: =I37*0.7 -> 9.1
D38: BYD6470MT6HEV4 | E38: 28 | F38: =E38*0.7 -> 19.6 | I38: 28 | J38: =I38*0.7 -> 19.6
D39: BYD6480STHEV5 | E39: 14 | F39: 12.98 | I39: 14 | J39: 12.98
D40: BYD6490SBEV | E40: 279 | F40: 971.75 | H40: 实地核查7辆，核减1辆，核减原因：现场未核查到车辆 | I40: 278 | J40: 968.15
D41: BYD6490SBEV1 | E41: 41 | F41: 88.4 | H41: 未纳入实地核查范围 | I41: 41 | J41: 88.4
D42: BYD6490ST6HEV | E42: 101 | F42: 73.76 | I42: 101 | J42: 73.76
D43: BYD6490ST6HEV1 | E43: 109 | F43: 83.72 | G43: 核减1辆，核减原因：车辆发票信息与税务系统不一致 | I43: 108 | J43: 83.02
D44: BYD6490ST6HEV2 | E44: 30 | F44: 21 | G44: 提交资料符合申报要求，审核通过 | I44: 30 | J44: 21
D45: BYD6490STHEV | E45: 536 | F45: 822.44 | G45: 核减1辆车补助资金0.62万元，核减原因：车辆申报补助标准核算错误；核减2辆，核减原因：车辆发票信息与税务系统不一致 | H45: 实地核查10辆，核减7辆，核减原因：现场未核查到车辆 | I45: 527 | J45: 807.4
D46: BYD6490STHEV1 | E46: 285 | F46: 479.82 | G46: 核减1辆，核减原因：车辆发票信息与税务系统不一致 | H46: 实地核查11辆，核减6辆，核减原因：现场未核查到车辆 | I46: 278 | J46: 468.78
D47: BYD6850HZEV3 | E47: 55 | F47: 479.16 | G47: 提交资料符合申报要求，审核通过 | H47: 实地核查10辆，核查通过 | I47: 55 | J47: 479.16
D48: BYD7006BEVG | E48: 104 | F48: 120.36 | H48: 实地核查30辆，核查通过 | I48: 104 | J48: 120.36
D49: BYD7006BEVH | E49: 2 | F49: 6 | H49: 未纳入实地核查范围 | I49: 2 | J49: 6
D50: QCJ7007BEV1 | E50: 73 | F50: 41.91 | H50: 实地核查7辆，核减2辆，核减原因：现场未核查到车辆 | I50: 71 | J50: 38.28
D51: QCJ7007BEV2 | E51: 4 | F51: 13.2 | H51: 未纳入实地核查范围 | I51: 4 | J51: 13.2
D52: QCJ7007BEV3 | E52: 266 | F52: 1602.04 | H52: 实地核查75辆，核减26辆，核减原因：现场未核查到车辆 | I52: 240 | J52: 1444.74
A53: 2018 | B53: 1 | C53: 比亚迪汽车工业有限公司 | D53: 合计 | E53: =SUM(E54:E85) -> 1756 | F53: =SUM(F54:F85) -> 9701.8533 | I53: =SUM(I54:I85) -> 1733 | J53: =SUM(J54:J85) -> 9632.6333
D54: BYD10311N7BEV1 | E54: 17 | F54: 80.1533 | G54: 提交资料符合申报要求，审核通过 | H54: 未纳入实地核查范围 | I54: 17 | J54: 80.1533
D55: BYD3310EH9BEV2 | E55: 7 | F55: 70 | I55: 7 | J55: 70
D56: BYD4180D8CBEV | E56: 5 | F56: 50 | I56: 5 | J56: 50
D57: BYD4250DDABEV | E57: 4 | F57: 40 | I57: 4 | J57: 40
D58: BYD5040XLCBEV | E58: 2 | F58: 12.572 | I58: 2 | J58: 12.572
D59: BYD5040XXYBEV1 | E59: 138 | F59: 867.468 | H59: 实地核查5辆，核查通过 | I59: 138 | J59: 867.468
D60: BYD6100LGEV10 | E60: 3 | F60: 63 | H60: 未纳入实地核查范围 | I60: 3 | J60: 63
D61: BYD6100LGEV6 | E61: 1 | F61: 18 | I61: 1 | J61: 18
D62: BYD6100LGEV8 | E62: 11 | F62: 235.68 | I62: 11 | J62: 235.68
D63: BYD6100LGEV9 | E63: 13 | F63: 269.4 | I63: 13 | J63: 269.4
D64: BYD6100LSEV1 | E64: 1 | F64: 30 | I64: 1 | J64: 30
D65: BYD6100LSEV3 | E65: 14 | F65: 284.4 | I65: 14 | J65: 284.4
D66: BYD6110LLEV3 | E66: 2 | F66: 39.6 | I66: 2 | J66: 39.6
D67: BYD6121LGEV3 | E67: 2 | F67: 42 | I67: 2 | J67: 42
D68: BYD6122LGEV1 | E68: 8 | F68: 159.6 | I68: 8 | J68: 159.6
D69: BYD6480STHEV | E69: 21 | F69: 35.28 | H69: 实地核查2辆，核查通过 | I69: 21 | J69: 35.28
D70: BYD6480STHEV3 | E70: 69 | F70: 120.04 | H70: 实地核查2辆，核减2辆，核减原因：现场未核查到车辆 | I70: 67 | J70: 116.68
D71: BYD6480STHEV5 | E71: 79 | F71: 148.36 | H71: 实地核查3辆，核减2辆，核减原因：现场未核查到车辆 | I71: 77 | J71: 145
D72: BYD6490STHEV | E72: 413 | F72: 908.6 | G72: 核减1辆，核减原因：车辆发票信息与税务系统不一致 | H72: 实地核查20辆，核减10辆，核减原因：现场未核查到车辆 | I72: 402 | J72: 884.4
D73: BYD6490STHEV1 | E73: 106 | F73: 233.2 | G73: 提交资料符合申报要求，审核通过 | H73: 未纳入实地核查范围 | I73: 106 | J73: 233.2
D74: BYD6710HLEV2 | E74: 6 | F74: 36.3 | I74: 6 | J74: 36.3
D75: BYD6810HZEV5 | E75: 1 | F75: 14.52 | I75: 1 | J75: 14.52
D76: BYD6810HZEV7 | E76: 198 | F76: 2874.96 | I76: 198 | J76: 2874.96
D77: BYD6810LZEV4 | E77: 10 | F77: 200 | I77: 10 | J77: 200
D78: BYD6810LZEV6 | E78: 5 | F78: 66 | I78: 5 | J78: 66
D79: BYD6811HZEV | E79: 10 | F79: 145.2 | I79: 10 | J79: 145.2
D80: BYD6850HZEV2 | E80: 4 | F80: 58.08 | I80: 4 | J80: 58.08
D81: BYD7006BEVG | E81: 308 | F81: 1540 | G81: 核减6辆，核减原因：截至2020年12月31日累计行驶里程不足2万公里 | H81: 实地核查54辆，核减1辆，核减原因：现场未核查到车辆 | I81: 301 | J81: 1505
D82: BYD7006BEVH | E82: 27 | F82: 88.36 | G82: 提交资料符合申报要求，审核通过 | H82: 未纳入实地核查范围 | I82: 27 | J82: 88.36
D83: QCJ7007BEV1 | E83: 161 | F83: 538.56 | H83: 实地核查6辆，核减1辆，核减原因：现场未核查到车辆 | I83: 160 | J83: 535.26
D84: QCJ7007BEV2 | E84: 84 | F84: 275.22 | H84: 未纳入实地核查范围 | I84: 84 | J84: 275.22
D85: QCJ7007BEV3 | E85: 26 | F85: 157.3 | H85: 实地核查2辆，核查通过 | I85: 26 | J85: 157.3
A86: 2017 | B86: 1 | C86: 比亚迪汽车工业有限公司 | D86: 合计 | E86: 1400 | F86: 10039.16 | I86: 1355 | J86: =SUM(J87:J106) -> 9836.64
D87: BYD5030XYZBEV | E87: 66 | F87: 439.56 | G87: 提交资料符合申报要求，审核通过 | H87: 实地核查10辆，核减2辆，核减原因：现场未核查到车辆 | I87: 64 | J87: 426.24
D88: BYD5070CTYBEV | E88: 2 | F88: 30 | H88: 未纳入实地核查范围 | I88: 2 | J88: 30
D89: BYD5070XXYBEV | E89: 2 | F89: 30 | I89: 2 | J89: 30
D90: BYD6100LGEV3 | E90: 53 | F90: 1590 | H90: 实地核查4辆，核查通过 | I90: 53 | J90: 1590
D91: BYD6100LGEV5 | E91: 1 | F91: 30 | H91: 未纳入实地核查范围 | I91: 1 | J91: 30
D92: BYD6100LGEV6 | E92: 1 | F92: 30 | I92: 1 | J92: 30
D93: BYD6100LGEV7 | E93: 3 | F93: 90 | I93: 3 | J93: 90
D94: BYD6100LSEV1 | E94: 16 | F94: 480 | H94: 实地核查5辆，核查通过 | I94: 16 | J94: 480
D95: BYD6110LLEV | E95: 8 | F95: 240 | H95: 实地核查2辆，核查通过 | I95: 8 | J95: 240
D96: BYD6120LLEV4 | E96: 1 | F96: 30 | I96: 1 | J96: 30
D97: BYD6121LGEV3 | E97: 17 | F97: 510 | H97: 实地核查3辆，核查通过 | I97: 17 | J97: 510
D98: BYD6480STHEV | E98: 58 | F98: 139.2 | H98: 未纳入实地核查范围 | I98: 58 | J98: 139.2
D99: BYD6480STHEV3 | E99: 35 | F99: 84 | I99: 35 | J99: 84
D100: BYD6480STHEV5 | E100: 10 | F100: 24 | I100: 10 | J100: 24
D101: BYD6810LZEV1 | E101: 17 | F101: 340 | I101: 17 | J101: 340
D102: BYD6810LZEV4 | E102: 57 | F102: 1140 | I102: 57 | J102: 1140
D103: BYD7006BEVH | E103: 276 | F103: 1214.4 | H103: 实地核查18辆，核查通过 | I103: 276 | J103: 1214.4
D104: CK6100LGEV2 | E104: 7 | F104: 210 | H104: 未纳入实地核查范围 | I104: 7 | J104: 210
D105: QCJ7007BEV1 | E105: 554 | F105: 2437.6 | H105: 实地核查87辆，核减42辆，核减原因：现场未核查到车辆 | I105: 512 | J105: 2252.8
D106: QCJ7007BEV2 | E106: 216 | F106: 950.4 | H106: 实地核查5辆，核减1辆，核减原因：现场未核查到车辆 | I106: 215 | J106: 946
A107: 2016 | B107: 1 | C107: 比亚迪汽车工业有限公司 | D107: 合计 | E107: 86 | F107: 1123.5 | I107: 86 | J107: 1123.5
D108: BYD6710HLEV | E108: 1 | F108: 23 | G108: 提交资料符合申报要求，审核通过 | H108: 未纳入实地核查范围 | I108: 1 | J108: 23
D109: BYD6480STHEV | E109: 5 | F109: 15 | I109: 5 | J109: 15
D110: BYD6710HZEV | E110: 1 | F110: 25 | I110: 1 | J110: 25
D111: BYD7006BEVH | E111: 19 | F111: 104.5 | I111: 19 | J111: 104.5
D112: CK6100LGEV2 | E112: 1 | F112: 50 | I112: 1 | J112: 50
D113: CK6121LGEV | E113: 1 | F113: 50 | I113: 1 | J113: 50
D114: CK6710HZEV1 | E114: 1 | F114: 25 | I114: 1 | J114: 25
D115: CK6800LZEV1 | E115: 14 | F115: 560 | I115: 14 | J115: 560
D116: CK6800LZEV2 | E116: 1 | F116: 40 | I116: 1 | J116: 40
D117: QCJ7006BEVF | E117: 8 | F117: 44 | I117: 8 | J117: 44
D118: QCJ7007BEV | E118: 34 | F118: 187 | H118: 实地核查2辆，核查通过 | I118: 34 | J118: 187
